bitfinex/quotes_BTCUSD_20230113
["timestamp","ask_amount","ask_price","bid_price","bid_amount"]
[1673622836532,0.06355475,19151.0,19149.0,0.67073347]
[1673622836787,0.58572075,19151.0,19147.0,0.80723892]
[1673622837026,1.101601,19151.0,19147.0,0.70723892]
[1673622837269,0.3,19150.0,19145.0,0.69950214]
[1673622837524,1.044468,19149.0,19146.0,0.55937592]
[1673622837795,0.1,19148.0,19145.0,0.00495146]
[1673622838048,1.144515,19148.0,19145.0,0.00495146]
[1673622838293,1.05046714,19148.0,19145.0,0.00495146]
[1673622838538,1.044515,19148.0,19145.0,0.10495146]
[1673622838791,1.044515,19148.0,19145.0,0.00495146]
[1673622839547,1.05052161,19148.0,19145.0,0.00495146]
[1673622839797,0.3,19147.0,19145.0,0.00495146]
[1673622840050,1.779679,19146.0,19145.0,0.00495146]
[1673622840785,0.8841135,19146.0,19145.0,0.00495146]
[1673622841039,0.89072085,19146.0,19145.0,0.00495146]
[1673622841305,0.3618115,19146.0,19145.0,0.00495146]
[1673622841546,0.36731337,19146.0,19145.0,0.00428646]
[1673622841803,0.3618115,19146.0,19145.0,0.00428646]
[1673622842305,1.2968865,19146.0,19145.0,0.00428646]
[1673622842550,1.1841135,19146.0,19145.0,0.00428646]
[1673622842784,1.3968865,19146.0,19145.0,0.00428646]
[1673622843282,1.0968865,19146.0,19145.0,0.00428646]
[1673622843537,1.3968865,19146.0,19145.0,0.00428646]
[1673622844039,1.3968865,19146.0,19145.0,0.2145914]
[1673622844040,0.00581921,19146.0,19145.0,0.2145914]
[1673622844288,0.522268,19148.0,19145.0,0.2145914]
[1673622844289,0.00591943,19147.0,19145.0,0.33045446]
[1673622844539,0.00591943,19147.0,19146.0,0.326168]
[1673622844797,0.522268,19148.0,19146.0,0.326168]
[1673622845050,0.81231623,19149.0,19146.0,0.21030494]
[1673622845051,0.29007223,19149.0,19146.0,0.21030494]
[1673622845255,0.00652147,19147.0,19146.0,1.70750061]
[1673622845547,1.044352,19151.0,19146.0,1.70750061]
[1673622845548,0.522186,19151.0,19147.0,0.00115172]
[1673622845815,0.53984924,19152.0,19147.0,0.21145666]
[1673622845816,0.622196,19150.0,19147.0,0.21145666]
[1673622846063,0.112773,19149.0,19147.0,0.00115172]
[1673622846308,1.157267,19148.0,19147.0,0.00115172]
[1673622846556,1.044494,19148.0,19147.0,0.00115172]
[1673622846805,1.557267,19148.0,19147.0,0.00115172]
[1673622848047,2.242914,19148.0,19147.0,0.00115172]
[1673622848536,0.1,19147.0,19145.0,0.00428646]
[1673622848777,1.566906,19146.0,19145.0,0.00428646]
[1673622849028,0.1,19145.0,19140.0,1.38597175]
[1673622849274,0.1,19145.0,19141.0,0.00019]
[1673622849275,1.04474,19144.0,19141.0,0.00019]
[1673622849773,1.972793,19147.0,19141.0,1.145063]
[1673622850001,0.1,19147.0,19142.0,0.53647294]
[1673622850245,0.1,19147.0,19143.0,0.326168]
[1673622850527,1.144517,19148.0,19144.0,0.326168]
[1673622850772,0.62224,19149.0,19145.0,0.21030494]
[1673622850773,0.52224,19149.0,19145.0,0.21030494]
[1673622851029,0.63984624,19152.0,19146.0,0.73260094]
[1673622851030,0.53984624,19152.0,19146.0,0.73260094]
[1673622851278,1.044337,19151.0,19147.0,0.21030494]
[1673622851523,1.044337,19151.0,19148.0,0.21030494]
[1673622851771,0.522172,19151.0,19149.0,0.21030494]
[1673622852014,0.53985224,19152.0,19149.0,0.21030494]
[1673622852267,0.01768824,19152.0,19149.0,0.21030494]
[1673622852768,0.01768824,19152.0,19148.0,0.1]
[1673622852769,0.53982824,19152.0,19148.0,0.1]
[1673622853263,0.53982824,19152.0,19148.0,0.31030494]
[1673622853264,0.33882824,19152.0,19148.0,0.31030494]
[1673622853765,0.522129,19153.0,19148.0,0.31030494]
[1673622854018,0.522129,19153.0,19149.0,0.53647294]
[1673622854263,0.01753765,19154.0,19150.0,0.53647294]
[1673622854534,0.01753765,19154.0,19151.0,0.53647294]
[1673622854772,0.11753765,19154.0,19152.0,0.326168]
[1673622855009,1.16171265,19154.0,19149.0,0.45020411]
[1673622855268,1.16171265,19154.0,19149.0,0.67344046]
[1673622855269,0.112773,19153.0,19149.0,0.67344046]
[1673622855517,1.044254,19153.0,19149.0,0.8837454]
[1673622855753,0.45333865,19154.0,19150.0,0.1]
[1673622856009,0.45333865,19154.0,19151.0,0.326168]
[1673622856010,0.55333865,19154.0,19151.0,0.326168]
[1673622856247,0.55333865,19154.0,19151.0,0.21030494]
[1673622856488,1.916876,19155.0,19151.0,0.21030494]
[1673622856489,0.522076,19155.0,19151.0,0.21030494]
[1673622856727,0.522076,19155.0,19152.0,0.53647294]
[1673622856981,0.522051,19156.0,19152.0,0.21030494]
[1673622857222,0.54020341,19157.0,19153.0,0.53654994]
[1673622857431,0.54020341,19157.0,19154.0,0.31030494]
[1673622857747,0.54020341,19157.0,19154.0,0.21030494]
[1673622857748,0.53520341,19157.0,19154.0,0.21030494]
[1673622857991,0.53520341,19157.0,19153.0,0.44719196]
[1673622858245,0.53520341,19157.0,19153.0,0.21030494]
[1673622858484,0.1,19156.0,19153.0,0.31030494]
[1673622858725,0.53520341,19157.0,19153.0,0.1]
[1673622858971,0.53520341,19157.0,19153.0,0.75731369]
[1673622859213,0.53520341,19157.0,19154.0,0.426245]
[1673622859467,0.53520341,19157.0,19155.0,0.326245]
[1673622859701,0.1,19156.0,19151.0,0.69370041]
[1673622859947,0.112979,19155.0,19151.0,0.69370041]
[1673622860219,0.1,19154.0,19151.0,0.69370041]
[1673622860460,0.1,19154.0,19152.0,0.66987066]
[1673622860461,0.522101,19154.0,19152.0,0.66987066]
[1673622860700,0.521769,19155.0,19152.0,0.21030494]
[1673622860949,1.044081,19156.0,19152.0,0.21030494]
[1673622861179,0.522051,19156.0,19153.0,0.1]
[1673622861435,0.53521641,19157.0,19153.0,0.75726873]
[1673622861707,0.53521641,19157.0,19153.0,0.75731662]
[1673622861950,1.04223741,19157.0,19152.0,0.44705096]
[1673622862214,1.04223741,19157.0,19151.0,2.10144932]
[1673622862451,1.04223741,19157.0,19151.0,1.78961526]
[1673622862452,0.1,19156.0,19151.0,1.78961526]
[1673622862705,0.4,19156.0,19151.0,0.509898]
[1673622862957,1.044124,19155.0,19151.0,0.72020294]
[1673622863191,1.044124,19155.0,19151.0,0.509898]
[1673622863431,1.044124,19155.0,19152.0,0.1]
[1673622863907,1.044124,19155.0,19151.0,0.72020294]
[1673622864172,1.044124,19155.0,19150.0,1.06940067]
[1673622864419,1.044124,19155.0,19150.0,0.54351521]
[1673622864420,0.3,19154.0,19150.0,0.54351521]
[1673622864671,1.779327,19153.0,19149.0,0.00019]
[1673622864911,1.779327,19153.0,19149.0,1.04490371]
[1673622864912,1.666348,19153.0,19149.0,1.04490371]
[1673622865158,1.666348,19153.0,19149.0,0.83532676]
[1673622865393,1.566348,19153.0,19149.0,0.62502182]
[1673622866126,1.566348,19153.0,19149.0,0.00019]
[1673622866127,0.1,19152.0,19149.0,0.00019]
[1673622866367,0.522165,19151.0,19148.0,1.59833183]
[1673622866609,0.522165,19151.0,19148.0,0.00381912]
[1673622866873,0.412979,19150.0,19148.0,0.00381912]
[1673622867139,1.56666,19149.0,19148.0,0.00381912]
[1673622867400,1.679639,19149.0,19148.0,0.00381912]
[1673622867621,1.56666,19149.0,19148.0,0.00381912]
[1673622868883,1.04444,19149.0,19148.0,0.00381912]
[1673622869874,0.52222,19149.0,19148.0,0.00381912]
[1673622870486,0.27071412,19152.0,19149.0,0.1]
[1673622870758,0.27071412,19152.0,19150.0,0.326245]
[1673622871017,0.27071412,19152.0,19148.0,0.00381912]
[1673622871261,0.112979,19151.0,19148.0,0.00381912]
[1673622871520,1.666579,19150.0,19148.0,0.00381912]
[1673622871767,0.112979,19149.0,19148.0,0.00381912]
[1673622872027,1.044386,19150.0,19148.0,0.68720075]
[1673622872283,1.044386,19150.0,19148.0,0.00381912]
[1673622872530,0.522171,19151.0,19148.0,0.82514391]
[1673622872774,0.522162,19152.0,19149.0,0.326245]
[1673622873019,0.522162,19152.0,19149.0,0.21030494]
[1673622873271,0.1,19151.0,19148.0,0.00381912]
[1673622874278,0.62217,19151.0,19148.0,0.00381912]
[1673622874523,0.62217,19151.0,19146.0,0.0985505]
[1673622874524,0.52217,19151.0,19146.0,0.0985505]
[1673622875020,0.52217,19151.0,19145.0,0.1]
[1673622875021,0.3,19150.0,19145.0,0.1]
[1673622875266,0.1,19149.0,19145.0,0.1]
[1673622875515,1.144462,19149.0,19145.0,0.1]
[1673622875761,1.044462,19149.0,19145.0,0.1]
[1673622876279,1.044462,19149.0,19145.0,0.31030494]
[1673622876535,1.044462,19149.0,19146.0,0.93034843]
[1673622876536,0.522234,19149.0,19146.0,0.93034843]
[1673622876786,0.522234,19149.0,19147.0,0.326245]
[1673622877037,0.522197,19150.0,19148.0,0.326245]
[1673622877287,0.522144,19152.0,19149.0,0.326245]
[1673622877529,0.522155,19152.0,19150.0,0.326245]
[1673622877772,0.522155,19152.0,19150.0,0.21030494]
[1673622878257,1.044309,19152.0,19149.0,0.1]
[1673622878513,0.522137,19153.0,19149.0,0.31030494]
[1673622878763,0.522137,19153.0,19149.0,0.83252394]
[1673622879015,1.044248,19153.0,19149.0,0.83252394]
[1673622879257,1.044248,19153.0,19149.0,0.622219]
[1673622879502,1.144248,19153.0,19149.0,0.1]
[1673622879738,1.144248,19153.0,19148.0,0.522228]
[1673622879981,0.4,19152.0,19147.0,0.622445]
[1673622880227,0.55336229,19152.0,19147.0,0.00019]
[1673622880480,1.144358,19151.0,19147.0,0.00019]
[1673622880738,0.1,19150.0,19147.0,0.00019]
[1673622880993,1.144358,19151.0,19147.0,0.65944079]
[1673622880994,0.522185,19151.0,19147.0,0.65944079]
[1673622881239,1.044375,19151.0,19148.0,0.1]
[1673622881729,1.044375,19151.0,19147.0,1.70378179]
[1673622881986,1.044375,19151.0,19147.0,1.61752788]
[1673622882247,1.044375,19151.0,19148.0,0.78237242]
[1673622882741,1.044201,19154.0,19149.0,0.21030494]
[1673622882988,0.522065,19155.0,19151.0,1.044328]
[1673622883246,0.522065,19155.0,19152.0,0.63654994]
[1673622883492,0.522065,19155.0,19152.0,0.21030494]
[1673622883741,1.044121,19155.0,19149.0,0.522197]
[1673622884034,0.112979,19154.0,19149.0,0.73250194]
[1673622884291,1.566375,19153.0,19147.0,0.00019]
[1673622884545,0.112979,19152.0,19147.0,0.21049494]
[1673622884789,0.4,19152.0,19147.0,0.00019]
[1673622885033,1.044358,19151.0,19147.0,0.00019]
[1673622885277,0.4,19150.0,19147.0,0.00019]
[1673622885521,1.04444,19149.0,19146.0,0.62278278]
[1673622885765,1.04444,19149.0,19145.0,0.1525607]
[1673622886282,0.1,19148.0,19145.0,0.1525607]
[1673622886561,0.1,19146.0,19145.0,0.1525607]
[1673622886826,1.044604,19146.0,19145.0,0.1525607]
[1673622887538,1.444604,19146.0,19145.0,0.1525607]
[1673622889331,1.044604,19146.0,19145.0,0.1525607]
[1673622889570,0.522302,19146.0,19143.0,0.0038863]
[1673622890316,1.044604,19146.0,19143.0,0.0038863]
[1673622890562,0.522302,19146.0,19143.0,0.0038863]
[1673622890801,0.3,19145.0,19143.0,0.0038863]
[1673622891317,0.522352,19145.0,19143.0,0.0038863]
[1673622891821,1.044681,19145.0,19143.0,0.0038863]
[1673622892074,0.522329,19145.0,19143.0,0.0038863]
[1673622892581,0.522329,19145.0,19143.0,0.0038863]
[1673622893895,0.90610037,19149.0,19143.0,0.0038863]
[1673622894151,0.622279,19147.0,19144.0,0.21030494]
[1673622894404,0.522279,19147.0,19144.0,0.21030494]
[1673622894650,0.67558629,19149.0,19144.0,0.21030494]
[1673622894902,0.52224,19149.0,19145.0,0.53654994]
[1673622895163,1.044482,19149.0,19146.0,0.326245]
[1673622895415,1.044482,19149.0,19143.0,0.0038863]
[1673622895739,0.49821937,19148.0,19143.0,0.21419124]
[1673622896008,0.522288,19147.0,19143.0,0.84302715]
[1673622896254,0.622269,19148.0,19144.0,0.1]
[1673622896501,1.144536,19148.0,19144.0,0.31030494]
[1673622896751,0.3,19147.0,19143.0,0.0523863]
[1673622896994,0.522307,19146.0,19143.0,0.0523863]
[1673622897732,0.3,19145.0,19143.0,0.0523863]
[1673622897984,0.522356,19144.0,19143.0,0.0523863]
[1673622899246,1.044712,19144.0,19143.0,0.0523863]
[1673622899490,1.094697,19145.0,19143.0,0.0523863]
[1673622899752,1.094701,19145.0,19143.0,0.0523863]
[1673622899995,0.83379828,19145.0,19143.0,0.0523863]
[1673622900558,0.522326,19146.0,19143.0,0.26269124]
[1673622900753,0.67568029,19150.0,19144.0,0.326245]
[1673622901009,0.52225,19148.0,19145.0,0.53654994]
[1673622901249,0.52225,19148.0,19145.0,0.21030494]
[1673622901496,0.67560429,19149.0,19145.0,0.21030494]
[1673622901737,0.67560429,19149.0,19146.0,0.21030494]
[1673622901989,0.522242,19149.0,19146.0,0.21030494]
[1673622902237,0.67560429,19149.0,19145.0,0.09854764]
[1673622902995,1.19782429,19149.0,19145.0,0.09854764]
[1673622903235,1.42970237,19149.0,19144.0,1.144666]
[1673622903488,0.15336229,19148.0,19144.0,0.83263894]
[1673622903740,0.55336229,19148.0,19143.0,0.1525763]
[1673622903996,1.82973837,19148.0,19143.0,0.1525763]
[1673622904253,1.82973837,19148.0,19143.0,0.36288124]
[1673622904254,1.72973837,19148.0,19143.0,0.36288124]
[1673622904508,1.19786029,19148.0,19144.0,0.21030494]
[1673622904748,0.522311,19150.0,19145.0,0.21030494]
[1673622904996,0.0001,19150.0,19147.0,0.1]
[1673622905245,0.15346229,19150.0,19148.0,0.326245]
[1673622905497,0.0001,19150.0,19147.0,0.1]
[1673622905744,0.0001,19150.0,19147.0,0.07260197]
[1673622906008,0.25346229,19150.0,19147.0,0.07260197]
[1673622906251,0.0001,19150.0,19148.0,0.326245]
[1673622906512,0.0001,19150.0,19149.0,0.326245]
[1673622907008,0.0001,19150.0,19149.0,0.426245]
[1673622907493,0.0001,19150.0,19149.0,0.948465]
[1673622907981,0.0001,19150.0,19149.0,1.470685]
[1673622909455,0.0001,19150.0,19149.0,2.10159129]
[1673622910451,0.0001,19150.0,19149.0,0.326245]
[1673622910452,0.05737,19150.0,19149.0,0.326245]
[1673622910710,0.05737,19150.0,19148.0,0.522227]
[1673622910711,0.0001,19150.0,19148.0,0.522227]
[1673622910955,0.0001,19150.0,19149.0,0.1]
[1673622911208,0.0001,19150.0,19149.0,1.14444]
[1673622911454,0.0001,19150.0,19149.0,2.16986551]
[1673622911721,0.0001,19150.0,19149.0,1.91726028]
[1673622911970,0.0001,19150.0,19149.0,2.44335495]
[1673622913245,0.0001,19150.0,19149.0,1.470685]
[1673622913752,0.0001,19150.0,19149.0,0.326245]
[1673622914034,0.0001,19150.0,19148.0,0.62224]
[1673622914333,0.0001,19150.0,19148.0,0.1]
[1673622914571,0.0001,19150.0,19149.0,0.326245]
[1673622915046,0.522159,19152.0,19149.0,0.326245]
[1673622915292,0.522165,19151.0,19146.0,0.63557212]
[1673622915608,0.1,19150.0,19146.0,0.1]
[1673622916041,0.1,19150.0,19145.0,0.522329]
[1673622916042,1.52963037,19150.0,19144.0,0.52235]
[1673622916305,0.3,19149.0,19143.0,1.62931732]
[1673622916548,0.3,19149.0,19144.0,0.1]
[1673622916549,1.144513,19148.0,19144.0,0.1]
[1673622917048,1.144513,19148.0,19143.0,0.88505924]
[1673622917299,1.144513,19148.0,19143.0,0.6747543]
[1673622917542,1.144513,19148.0,19143.0,0.88505924]
[1673622917543,1.14429654,19148.0,19143.0,0.88505924]
[1673622917792,0.3,19147.0,19143.0,0.36269124]
[1673622918040,1.14429654,19148.0,19143.0,0.1523863]
[1673622918288,0.62204854,19148.0,19143.0,0.36269124]
[1673622918536,0.3,19147.0,19143.0,0.36269124]
[1673622918790,0.822275,19147.0,19143.0,0.0523863]
[1673622919299,0.522265,19148.0,19144.0,0.21030494]
[1673622919571,1.891086,19151.0,19145.0,1.58228964]
[1673622919860,1.891086,19151.0,19146.0,0.98349862]
[1673622919861,1.3689,19151.0,19146.0,0.98349862]
[1673622920112,1.3689,19151.0,19147.0,1.05881294]
[1673622920359,1.891067,19151.0,19148.0,0.326245]
[1673622920754,1.891067,19151.0,19148.0,0.21030494]
[1673622920967,0.25336229,19152.0,19149.0,0.21030494]
[1673622920968,0.522164,19152.0,19149.0,0.21030494]
[1673622921179,1.21588574,19154.0,19150.0,0.21030494]
[1673622921393,0.69377774,19154.0,19151.0,0.21030494]
[1673622921615,0.01831045,19154.0,19152.0,0.21030494]
[1673622922059,0.01831045,19154.0,19150.0,1.06911968]
[1673622922278,0.17167274,19154.0,19150.0,0.522171]
[1673622922691,0.27167274,19154.0,19150.0,0.522171]
[1673622923088,0.17167274,19154.0,19150.0,1.25466894]
[1673622923569,0.17167274,19154.0,19150.0,1.35466894]
[1673622923570,0.27167274,19154.0,19150.0,1.35466894]
[1673622923798,0.17167274,19154.0,19150.0,1.35466894]
[1673622924303,0.17167274,19154.0,19151.0,0.1]
[1673622924530,0.01831045,19154.0,19151.0,0.622151]
[1673622924775,0.01831045,19154.0,19153.0,0.1]
[1673622925019,0.01831045,19154.0,19153.0,2.20288294]
[1673622925250,0.01831045,19154.0,19153.0,2.43952668]
[1673622925488,0.01831045,19154.0,19153.0,1.992578]
[1673622925761,0.01831045,19154.0,19153.0,2.43952668]
[1673622926225,0.01831045,19154.0,19153.0,1.992578]
[1673622927184,0.01831045,19154.0,19153.0,0.848356]
[1673622927667,0.01831045,19154.0,19153.0,0.522111]
[1673622927918,0.01831045,19154.0,19153.0,0.848356]
[1673622928395,2.38737094,19159.0,19154.0,0.1]
[1673622928635,0.1,19157.0,19155.0,0.73235594]
[1673622928869,0.1,19157.0,19153.0,0.96869412]
[1673622929099,0.1,19157.0,19153.0,0.46914747]
[1673622929333,0.1,19157.0,19150.0,1.044344]
[1673622929334,1.35932457,19157.0,19150.0,1.044344]
[1673622929598,1.35932457,19157.0,19151.0,0.1]
[1673622929599,0.1,19155.0,19151.0,0.1]
[1673622929832,1.044146,19155.0,19151.0,0.1]
[1673622930067,1.044146,19155.0,19151.0,0.622162]
[1673622930313,0.15336229,19158.0,19152.0,0.65520992]
[1673622930557,2.08735694,19159.0,19153.0,2.21362189]
[1673622930857,0.1,19158.0,19154.0,1.08145492]
[1673622931058,1.93399465,19159.0,19155.0,0.21030494]
[1673622931291,1.41203765,19159.0,19156.0,0.21030494]
[1673622931520,0.01753765,19159.0,19157.0,0.21030494]
[1673622931767,0.01753765,19159.0,19158.0,0.326245]
[1673622932009,0.01753765,19159.0,19158.0,0.84822]
[1673622932246,0.01753765,19159.0,19158.0,0.326245]
[1673622932718,0.01753765,19159.0,19158.0,0.84822]
[1673622933197,0.01753765,19159.0,19158.0,0.326245]
[1673622934189,0.01753765,19159.0,19156.0,0.522002]
[1673622934190,0.07480765,19159.0,19156.0,0.522002]
[1673622934426,0.01753765,19159.0,19156.0,0.522002]
[1673622934663,0.01753765,19159.0,19157.0,1.7618994]
[1673622934907,0.01753765,19159.0,19158.0,1.81509998]
[1673622935150,0.01753765,19159.0,19158.0,2.43707498]
[1673622935390,1e-08,19159.0,19158.0,2.64737992]
[1673622935637,1e-08,19159.0,19158.0,2.43707498]
[1673622935868,1e-08,19159.0,19158.0,2.43713498]
[1673622936118,0.01778132,19160.0,19159.0,0.62863774]
[1673622936352,0.01778132,19160.0,19159.0,3.37226442]
[1673622936592,0.01778132,19160.0,19159.0,3.47226442]
[1673622937081,0.01778132,19160.0,19159.0,2.90126667]
[1673622937332,0.01856032,19162.0,19160.0,0.13001751]
[1673622937577,0.01856032,19162.0,19161.0,2.60630866]
[1673622937813,0.01856032,19162.0,19161.0,1.891924]
[1673622938289,0.01856032,19162.0,19161.0,3.34347629]
[1673622938554,0.01856032,19162.0,19161.0,2.65632359]
[1673622939815,0.01856032,19162.0,19161.0,2.91726359]
[1673622940014,0.01856032,19162.0,19161.0,2.252864]
[1673622940254,0.01856032,19162.0,19161.0,2.94034606]
[1673622940482,0.01856032,19162.0,19161.0,2.67940606]
[1673622941253,0.01856032,19162.0,19161.0,3.20563876]
[1673622941505,0.01856032,19162.0,19161.0,3.36543876]
[1673622941760,0.01856032,19162.0,19161.0,2.83070606]
[1673622941987,0.28064131,19170.0,19162.0,0.76220943]
[1673622942227,0.3,19169.0,19164.0,1.0436]
[1673622942464,0.05734131,19170.0,19165.0,0.53654994]
[1673622942707,0.05734131,19170.0,19166.0,1.58003894]
[1673622942957,0.05734131,19170.0,19167.0,0.21030494]
[1673622943198,0.05734131,19170.0,19167.0,0.73201994]
[1673622943435,0.05734131,19170.0,19167.0,1.25374994]
[1673622943688,0.01863539,19168.0,19167.0,0.52173]
[1673622943935,0.07590539,19168.0,19166.0,0.521732]
[1673622944654,0.01863539,19168.0,19167.0,0.326245]
[1673622944912,0.01863539,19168.0,19166.0,0.521732]
[1673622945162,0.01863539,19168.0,19166.0,1.043489]
[1673622945400,0.01863539,19168.0,19167.0,0.326245]
[1673622945644,0.01863539,19168.0,19167.0,1.369705]
[1673622945875,0.01863539,19168.0,19167.0,2.59368116]
[1673622946215,0.01863539,19168.0,19167.0,1.99345994]
[1673622946379,0.01863539,19168.0,19167.0,2.3178877]
[1673622946621,0.01863539,19168.0,19167.0,4.91472781]
[1673622946858,0.01863539,19168.0,19167.0,5.01472781]
[1673622947087,0.01863539,19168.0,19167.0,5.35653109]
[1673622947322,0.0184937,19171.0,19168.0,0.59833305]
[1673622947565,0.0184937,19171.0,19170.0,1.32799]
[1673622947808,0.0184937,19171.0,19170.0,3.14335397]
[1673622948047,0.00768329,19172.0,19171.0,0.1]
[1673622948284,0.00768329,19172.0,19171.0,0.947866]
[1673622948778,0.00768329,19172.0,19171.0,0.847866]
[1673622949764,0.00768329,19172.0,19171.0,0.326245]
[1673622949765,0.06495329,19172.0,19171.0,0.326245]
[1673622950000,0.06495329,19172.0,19169.0,0.521675]
[1673622950970,0.21625329,19172.0,19168.0,0.03004004]
[1673622951238,0.1,19170.0,19168.0,0.03004004]
[1673622952163,0.112979,19169.0,19168.0,0.03004004]
[1673622952400,0.1,19170.0,19168.0,0.03004004]
[1673622952705,0.10768329,19172.0,19168.0,0.24034498]
[1673622952938,0.10768329,19172.0,19168.0,0.76204598]
[1673622952939,0.40768329,19172.0,19168.0,0.76204598]
[1673622953412,0.1,19171.0,19168.0,0.03004004]
[1673622953661,0.112979,19170.0,19168.0,0.03004004]
[1673622953901,0.3,19170.0,19168.0,0.03004004]
[1673622954135,0.1,19169.0,19168.0,0.03010004]
[1673622954362,0.4,19169.0,19168.0,0.03010004]
[1673622954593,0.0998849,19171.0,19168.0,0.03010004]
[1673622954830,0.3998849,19171.0,19168.0,0.24040498]
[1673622955065,0.13152439,19171.0,19168.0,1.03388434]
[1673622955293,0.62930229,19172.0,19168.0,0.02880004]
[1673622955550,0.1524,19171.0,19168.0,0.02880004]
[1673622955791,1.307175,19170.0,19168.0,0.02880004]
[1673622956028,1.194196,19170.0,19168.0,0.02880004]
[1673622956271,0.512979,19169.0,19168.0,0.02880004]
[1673622956538,1.034654,19169.0,19168.0,0.02880004]
[1673622957018,1.73306032,19169.0,19168.0,0.02880004]
[1673622957499,1.97362365,19169.0,19168.0,0.02880004]
[1673622957727,1.707329,19169.0,19168.0,0.02880004]
[1673622957967,0.1,19168.0,19167.0,0.13]
[1673622958201,1.295404,19168.0,19167.0,0.13]
[1673622958442,1.708383,19168.0,19167.0,0.13]
[1673622958946,1.608383,19168.0,19167.0,0.13]
[1673622959398,1.456383,19168.0,19167.0,0.13]
[1673622959921,0.412979,19168.0,19167.0,0.13]
[1673622960178,0.521643,19171.0,19167.0,0.86203494]
[1673622960404,0.00768329,19172.0,19169.0,0.1]
[1673622960405,0.52929829,19172.0,19169.0,0.1]
[1673622960641,0.00768329,19172.0,19170.0,0.21030494]
[1673622960892,0.00768329,19172.0,19169.0,0.521674]
[1673622961125,0.00768329,19172.0,19169.0,0.73197894]
[1673622961365,0.00768329,19172.0,19169.0,0.521674]
[1673622961629,0.00768329,19172.0,19170.0,0.31030494]
[1673622961864,0.00768329,19172.0,19171.0,0.326245]
[1673622962109,0.00768329,19172.0,19171.0,1.05817094]
[1673622962356,0.00768329,19172.0,19171.0,1.099566]
[1673622962596,0.00768329,19172.0,19171.0,0.326245]
[1673622963548,0.06495329,19172.0,19168.0,0.521685]
[1673622963788,0.06495329,19172.0,19167.0,0.751903]
[1673622964283,0.07144862,19172.0,19167.0,0.751903]
[1673622964517,0.07144862,19172.0,19167.0,0.13019]
[1673622964756,0.07144862,19172.0,19167.0,0.13]
[1673622964991,0.07144862,19172.0,19167.0,0.34030494]
[1673622965225,0.1,19171.0,19167.0,0.34030494]
[1673622965473,0.1,19171.0,19167.0,0.13]
[1673622965474,0.4,19171.0,19167.0,0.13]
[1673622965713,1.01519946,19171.0,19167.0,0.13]
[1673622965958,1.01519946,19171.0,19167.0,0.34030494]
[1673622966190,0.4,19171.0,19167.0,0.34030494]
[1673622966410,0.3,19171.0,19167.0,0.34030494]
[1673622966650,0.1,19170.0,19167.0,0.34030494]
[1673622966885,0.3,19171.0,19167.0,0.12354349]
[1673622967125,0.3,19171.0,19167.0,0.33384843]
[1673622967352,0.3,19171.0,19167.0,0.12354349]
[1673622967587,1.343244,19171.0,19167.0,0.12354349]
[1673622968099,0.1,19170.0,19167.0,0.12354349]
[1673622968341,0.36111643,19170.0,19167.0,0.12354349]
[1673622968580,0.5514,19169.0,19167.0,0.12354349]
[1673622968827,0.634681,19168.0,19167.0,0.12354349]
[1673622969103,0.112979,19168.0,19167.0,0.12354349]
[1673622969316,1.443372,19169.0,19167.0,0.12354349]
[1673622969786,0.112979,19168.0,19167.0,0.12354349]
[1673622970035,1.156383,19168.0,19167.0,0.12354349]
[1673622970277,1.708783,19168.0,19167.0,0.12354349]
[1673622971225,2.9084177,19168.0,19164.0,0.00019]
[1673622971463,0.4,19167.0,19164.0,0.00019]
[1673622971927,0.634736,19166.0,19164.0,0.00019]
[1673622972175,0.3,19165.0,19162.0,1.0440064]
[1673622972434,0.821797,19165.0,19162.0,1.0440064]
[1673622972696,1.343581,19165.0,19162.0,1.0440064]
[1673622973709,0.1,19164.0,19162.0,1.0440064]
[1673622973954,1.156655,19163.0,19161.0,0.00373494]
[1673622974202,0.4,19162.0,19161.0,0.00373494]
[1673622974468,1.556711,19162.0,19161.0,0.00373494]
[1673622974773,1.556711,19162.0,19161.0,1.04787084]
[1673622975014,1.456711,19162.0,19161.0,1.04787084]
[1673622975554,1.156711,19162.0,19161.0,1.04787084]
[1673622975841,1.343732,19162.0,19161.0,1.04787084]
[1673622976086,1.456711,19162.0,19161.0,1.04787084]
[1673622976338,1.456711,19162.0,19161.0,0.00373494]
[1673622976339,1.9054659,19162.0,19161.0,0.00373494]
[1673622976897,2.9535646,19162.0,19161.0,0.00373494]
[1673622977164,3.10692689,19162.0,19161.0,0.00373494]
[1673622977668,2.9535646,19162.0,19160.0,0.03375245]
[1673622977919,1.0784327,19161.0,19160.0,0.03375245]
[1673622978209,2.2351977,19161.0,19160.0,0.03375245]
[1673622978449,1.708965,19161.0,19160.0,0.03375245]
[1673622978949,2.54095999,19161.0,19160.0,0.03375245]
[1673622979195,2.54095999,19161.0,19160.0,5.245e-05]
[1673622979474,0.1,19160.0,19158.0,0.00373494]
[1673622979718,1.717541,19159.0,19158.0,0.00373494]
[1673622979972,1.83052,19159.0,19158.0,0.00373494]
[1673622980200,2.23052,19159.0,19158.0,0.00373494]
[1673622980440,2.752467,19159.0,19158.0,0.00373494]
[1673622980691,0.1,19158.0,19155.0,0.00373494]
[1673622980934,2.6142407,19157.0,19155.0,0.00373494]
[1673622981164,0.512979,19156.0,19155.0,0.00373494]
[1673622981408,1.557037,19156.0,19155.0,0.00373494]
[1673622981898,0.4168,19155.0,19152.0,0.00019]
[1673622982138,0.1,19153.0,19152.0,0.00019]
[1673622982389,1.157201,19153.0,19152.0,0.00019]
[1673622982638,0.522111,19153.0,19152.0,0.00019]
[1673622983113,1.044162,19155.0,19152.0,0.00019]
[1673622983369,2.170209,19158.0,19153.0,0.21030494]
[1673622983370,1.957889,19158.0,19153.0,0.21030494]
[1673622983611,0.521989,19158.0,19154.0,0.68794994]
[1673622983858,0.521989,19158.0,19155.0,0.21030494]
[1673622984340,0.112979,19157.0,19152.0,0.15589758]
[1673622984652,0.52203,19156.0,19152.0,0.00449758]
[1673622984890,1.044059,19156.0,19152.0,0.10449758]
[1673622985141,0.3,19155.0,19152.0,0.10449758]
[1673622985408,1.044131,19155.0,19152.0,0.10449758]
[1673622985646,0.52203,19156.0,19153.0,0.326245]